bitfinex/quotes_BTCUSD_20220731
["timestamp","ask_amount","ask_price","bid_price","bid_amount"]
[1659283341033,0.108395,23775.0,23774.0,0.001]
[1659283341277,0.079,23775.0,23774.0,0.001]
[1659283341727,0.210315,23777.0,23774.0,0.001]
[1659283342460,0.289315,23777.0,23774.0,0.001]
[1659283343835,0.210315,23777.0,23774.0,0.001]
[1659283344283,0.980548,23780.0,23774.0,0.40825733]
[1659283344542,0.079,23777.0,23774.0,0.40825733]
[1659283344811,0.210289,23776.0,23775.0,0.303477]
[1659283345035,0.210289,23776.0,23774.0,0.001]
[1659283345510,0.5,23775.0,23774.0,0.001]
[1659283346208,0.1,23775.0,23774.0,0.001]
[1659283346445,0.179,23775.0,23774.0,0.001]
[1659283347826,0.1,23775.0,23774.0,0.001]
[1659283348077,0.4,23775.0,23774.0,0.001]
[1659283348313,0.3,23777.0,23774.0,0.58645733]
[1659283348575,0.079,23775.0,23774.0,0.06364348]
[1659283348835,0.079,23775.0,23774.0,0.64910081]
[1659283349063,0.079,23775.0,23774.0,0.98415781]
[1659283349280,0.079,23775.0,23774.0,1.28415781]
[1659283349519,0.079,23775.0,23774.0,1.23415781]
[1659283349741,0.079,23775.0,23774.0,0.93415781]
[1659283349960,0.3,23786.0,23774.0,1.23415781]
[1659283350195,0.70725733,23786.0,23778.0,0.1282]
[1659283350423,0.70725733,23786.0,23776.0,0.1282]
[1659283350424,0.40725733,23785.0,23776.0,0.1282]
[1659283350651,0.29997614,23784.0,23775.0,0.05]
[1659283350893,0.76015733,23783.0,23774.0,0.075]
[1659283351136,0.1,23780.0,23774.0,0.075]
[1659283351357,0.55725733,23780.0,23774.0,0.075]
[1659283351802,0.55725733,23780.0,23774.0,0.001]
[1659283352026,0.40725733,23780.0,23774.0,0.001]
[1659283352554,0.05,23779.0,23774.0,0.001]
[1659283353691,0.4,23779.0,23774.0,0.001]
[1659283353902,0.61753033,23780.0,23774.0,0.001]
[1659283354357,0.40725733,23780.0,23774.0,0.001]
[1659283354570,0.079,23779.0,23774.0,0.001]
[1659283355758,0.40725733,23780.0,23774.0,0.001]
[1659283355984,0.50725733,23780.0,23774.0,0.001]
[1659283356431,0.58625733,23780.0,23774.0,0.001]
[1659283356924,0.98625733,23780.0,23774.0,0.001]
[1659283357156,0.88625733,23780.0,23774.0,0.001]
[1659283357854,0.80725733,23780.0,23774.0,0.001]
[1659283358290,0.00363336,23779.0,23774.0,0.001]
[1659283358534,0.00363336,23779.0,23775.0,0.303477]
[1659283358759,0.00363336,23779.0,23774.0,0.001]
[1659283360094,0.00154273,23778.0,23774.0,0.001]
[1659283360803,0.00154273,23778.0,23775.0,0.03590784]
[1659283361041,0.00565113,23778.0,23775.0,0.03590784]
[1659283361269,0.00565113,23778.0,23774.0,0.001]
[1659283362601,0.08465113,23778.0,23774.0,0.001]
[1659283362825,0.08465113,23778.0,23774.0,0.106123]
[1659283363030,0.08465113,23778.0,23775.0,0.03832511]
[1659283363194,0.08465113,23778.0,23774.0,0.106123]
[1659283363446,0.08465113,23778.0,23774.0,0.001]
[1659283363940,0.0049575,23778.0,23775.0,0.03602872]
[1659283364358,0.00565113,23778.0,23775.0,0.03602872]
[1659283364508,0.08465113,23778.0,23774.0,0.106124]
[1659283365109,0.08465113,23778.0,23775.0,0.03602872]
[1659283365973,0.00565113,23778.0,23775.0,0.03602872]
[1659283366444,0.08465113,23778.0,23775.0,0.03602872]
[1659283367897,0.00565113,23778.0,23775.0,0.03602872]
[1659283368117,0.00565113,23778.0,23775.0,0.33950572]
[1659283368579,0.08465113,23778.0,23775.0,0.14114872]
[1659283368814,0.08465113,23778.0,23776.0,0.303477]
[1659283369034,0.08465113,23778.0,23777.0,0.303477]
[1659283369264,0.08465113,23778.0,23775.0,0.10512]
[1659283369483,0.08465113,23778.0,23776.0,0.03467316]
[1659283369703,0.00565113,23778.0,23776.0,0.03467316]
[1659283370187,0.00565113,23778.0,23776.0,0.303477]
[1659283370387,0.08465113,23778.0,23775.0,0.10512]
[1659283370648,0.08465113,23778.0,23776.0,0.303477]
[1659283370879,0.08465113,23778.0,23775.0,0.10512]
[1659283371108,0.29491913,23778.0,23774.0,0.001]
[1659283371350,0.210282,23777.0,23774.0,0.001]
[1659283372520,0.290282,23777.0,23774.0,0.001]
[1659283373891,0.210282,23777.0,23774.0,0.001]
[1659283374635,0.275282,23777.0,23774.0,0.001]
[1659283375305,0.029395,23776.0,23774.0,0.001]
[1659283375547,0.210276,23776.0,23774.0,0.001]
[1659283375762,0.129395,23775.0,23774.0,0.001]
[1659283376456,0.107,23775.0,23774.0,0.071]
[1659283377368,0.007,23775.0,23774.0,0.47825733]
[1659283377598,0.01261666,23775.0,23774.0,0.78173433]
[1659283377857,0.01261666,23775.0,23774.0,1.20218133]
[1659283378086,0.01261666,23775.0,23774.0,0.78173433]
[1659283378328,0.00561666,23775.0,23774.0,0.71173433]
[1659283378559,0.00561666,23775.0,23774.0,0.78480877]
[1659283378806,0.00561666,23775.0,23774.0,0.37755144]
[1659283379768,0.00561666,23775.0,23774.0,0.30455144]
[1659283380448,0.08461666,23775.0,23774.0,0.001]
[1659283380923,0.08461666,23775.0,23774.0,0.304477]
[1659283381143,0.08461666,23775.0,23774.0,0.001]
[1659283381586,0.29489856,23775.0,23774.0,0.001]
[1659283381823,0.21589856,23775.0,23774.0,0.001]
[1659283382491,0.08461356,23775.0,23774.0,0.001]
[1659283382938,0.32429256,23775.0,23774.0,0.001]
[1659283383224,0.29489756,23775.0,23774.0,0.03567316]
[1659283383448,0.37429256,23775.0,23774.0,0.001]
[1659283383684,0.67429256,23775.0,23774.0,0.001]
[1659283383910,0.59529256,23775.0,23774.0,0.001]
[1659283384137,0.70254989,23775.0,23774.0,0.001]
[1659283384594,1.07054989,23775.0,23774.0,0.001]
[1659283384819,1.12054989,23775.0,23774.0,0.001]
[1659283385267,1.33086888,23775.0,23774.0,0.001]
[1659283385564,0.93086888,23775.0,23774.0,0.001]
[1659283385793,0.00561356,23775.0,23774.0,0.17093203]
[1659283386255,0.00561356,23775.0,23774.0,0.88166636]
[1659283386487,0.08461356,23775.0,23774.0,0.88166636]
[1659283386714,0.08461356,23775.0,23774.0,0.31153587]
[1659283387034,0.08461356,23775.0,23774.0,0.001]
[1659283387578,0.08461356,23775.0,23774.0,0.03567316]
[1659283387810,0.00561356,23775.0,23774.0,0.00805887]
[1659283388060,0.00553412,23775.0,23774.0,0.00805887]
[1659283388517,0.08453412,23775.0,23774.0,0.001]
[1659283388737,0.08453412,23775.0,23774.0,0.03567316]
[1659283388962,0.08453412,23775.0,23774.0,0.04273203]
[1659283389178,0.08453412,23775.0,23774.0,0.001]
[1659283390397,0.00553412,23775.0,23774.0,0.07]
[1659283390969,0.00553412,23775.0,23774.0,0.373477]
[1659283391198,0.00553412,23775.0,23774.0,0.91003433]
[1659283391423,0.00553412,23775.0,23774.0,0.94161433]
[1659283391635,0.00553412,23775.0,23774.0,0.99161433]
[1659283391865,0.00553412,23775.0,23774.0,1.22261433]
[1659283392504,0.00553412,23775.0,23774.0,1.00161433]
[1659283392714,1.412e-05,23775.0,23774.0,1.30161433]
[1659283392943,1.412e-05,23775.0,23774.0,1.35161433]
[1659283393879,0.00410636,23775.0,23774.0,1.35161433]
[1659283394324,0.00410636,23775.0,23774.0,1.27261433]
[1659283394544,0.00410636,23775.0,23774.0,1.35161433]
[1659283395239,0.00410636,23775.0,23774.0,1.25161433]
[1659283395456,0.00410636,23775.0,23774.0,0.95161433]
[1659283395682,0.00410636,23775.0,23774.0,1.25161433]
[1659283395897,0.00410636,23775.0,23774.0,1.17261433]
[1659283396118,0.00410636,23775.0,23774.0,1.17967209]
[1659283396547,0.00410636,23775.0,23774.0,1.23267209]
[1659283397185,0.00410636,23775.0,23774.0,0.93267209]
[1659283397417,0.00410636,23775.0,23774.0,0.765085]
[1659283397641,0.00553685,23775.0,23774.0,0.76473433]
[1659283397862,0.00553685,23775.0,23774.0,0.71173433]
[1659283398640,0.00553685,23775.0,23774.0,0.790085]
[1659283399729,0.00553685,23775.0,23774.0,0.712085]
[1659283400395,0.08453685,23775.0,23774.0,0.712085]
[1659283400603,0.08453685,23775.0,23774.0,0.840285]
[1659283401741,0.00553685,23775.0,23774.0,0.840285]
[1659283401979,0.0002181,23789.0,23788.0,0.05]
[1659283402214,0.0005,23790.0,23789.0,0.05]
[1659283402513,0.0005,23790.0,23789.0,2.83579433]
[1659283402741,0.0005,23790.0,23789.0,3.10849481]
[1659283402966,0.0005,23790.0,23789.0,2.45493781]
[1659283403197,0.0005,23790.0,23789.0,2.40493781]
[1659283403437,0.0005,23790.0,23789.0,2.10493781]
[1659283403679,0.0005,23790.0,23789.0,2.06073433]
[1659283404105,0.0005,23790.0,23789.0,2.01073433]
[1659283404338,0.0005,23790.0,23789.0,2.06473433]
[1659283404562,0.14473,23790.0,23789.0,0.76473433]
[1659283405055,0.10023,23790.0,23789.0,0.76473433]
[1659283405505,0.00574606,23790.0,23789.0,0.76473433]
[1659283405724,0.00574606,23790.0,23789.0,2.584732]
[1659283405956,0.00574606,23790.0,23789.0,0.303477]
[1659283406240,0.00574606,23790.0,23785.0,0.7026]
[1659283406241,0.00574606,23790.0,23785.0,0.5733]
[1659283406403,0.05774606,23790.0,23785.0,0.5733]
[1659283406635,0.05774606,23790.0,23786.0,0.303477]
[1659283406866,0.05774606,23790.0,23787.0,0.33815016]
[1659283407079,0.05774606,23790.0,23789.0,0.05]
[1659283407307,0.05774606,23790.0,23789.0,0.353477]
[1659283407759,0.00574606,23790.0,23789.0,0.76073433]
[1659283408409,0.08474606,23790.0,23789.0,0.76073433]
[1659283409592,0.08474606,23790.0,23789.0,0.303477]
[1659283409830,0.00574606,23790.0,23785.0,0.783431]
[1659283410110,0.00574606,23790.0,23786.0,0.71073433]
[1659283410341,0.02174606,23790.0,23787.0,0.74540749]
[1659283410579,0.02174606,23790.0,23788.0,0.71073433]
[1659283410802,0.02174606,23790.0,23789.0,0.303477]
[1659283411034,0.02174606,23790.0,23788.0,0.40725733]
[1659283411253,0.02174606,23790.0,23789.0,0.303477]
[1659283411674,0.00574606,23790.0,23789.0,0.303477]
[1659283412334,0.08474606,23790.0,23789.0,0.303477]
[1659283412796,0.08474606,23790.0,23788.0,0.40725733]
[1659283412995,0.00010514,23789.0,23788.0,0.40725733]
[1659283413272,0.00010514,23789.0,23788.0,0.71073433]
[1659283413496,0.0567038,23790.0,23789.0,0.05]
[1659283413717,0.04516407,23790.0,23789.0,0.303477]
[1659283413996,0.04516407,23790.0,23782.0,0.548]
[1659283413997,0.00591005,23790.0,23782.0,0.548]
[1659283414214,0.00591005,23790.0,23783.0,0.71073433]
[1659283414354,0.08491005,23790.0,23784.0,0.40725733]
[1659283414931,0.08491005,23790.0,23785.0,0.303477]
[1659283415043,0.08491005,23790.0,23784.0,0.40725733]
[1659283415484,0.08491005,23790.0,23785.0,0.303477]
[1659283415706,0.00591005,23790.0,23786.0,0.303477]
[1659283415936,0.00591005,23790.0,23788.0,0.303477]
[1659283416150,0.00591005,23790.0,23789.0,0.05]
[1659283416362,0.08491005,23790.0,23789.0,0.353477]
[1659283416577,0.08491005,23790.0,23789.0,0.482277]
[1659283416796,0.08491005,23790.0,23789.0,0.49492048]
[1659283417447,0.08491005,23790.0,23789.0,0.90217781]
[1659283417958,0.08491005,23790.0,23789.0,1.50217781]
[1659283418165,0.46437136,23797.0,23789.0,1.50217781]
[1659283418393,0.87162869,23797.0,23791.0,0.105044]
[1659283419295,0.46437136,23797.0,23792.0,0.40725733]
[1659283420160,0.46437136,23797.0,23791.0,0.40725733]
[1659283420161,0.51437136,23797.0,23791.0,0.40725733]
[1659283420376,0.56437136,23797.0,23792.0,0.035]
[1659283420822,0.05,23795.0,23792.0,0.035]
[1659283421046,0.87162869,23797.0,23792.0,0.035]
[1659283421514,0.029395,23796.0,23792.0,0.035]
[1659283421731,0.87162869,23797.0,23789.0,0.405049]
[1659283421955,0.00180921,23795.0,23790.0,0.40725733]
[1659283422379,0.00180921,23795.0,23790.0,0.61735433]
[1659283423936,0.00180921,23795.0,23791.0,0.51230233]
[1659283424194,0.00180921,23795.0,23792.0,0.00671519]
[1659283424417,0.00180921,23795.0,23793.0,0.303477]
[1659283424625,0.00180921,23795.0,23792.0,0.40725733]
[1659283424826,0.00180921,23795.0,23793.0,0.303477]
[1659283425027,0.00180921,23795.0,23794.0,0.303477]
[1659283425244,0.00180921,23795.0,23792.0,0.40725733]
[1659283425801,0.00180921,23795.0,23793.0,0.03467316]
[1659283426065,0.00180921,23795.0,23794.0,0.303477]
[1659283426329,0.00482624,23795.0,23794.0,0.00671462]
[1659283426737,0.00482624,23795.0,23793.0,0.053]
[1659283426943,0.41208357,23795.0,23793.0,0.053]
[1659283427152,0.35,23794.0,23793.0,0.053]
[1659283427747,0.35,23794.0,23788.0,0.405057]
[1659283427997,0.41208357,23795.0,23788.0,0.405047]
[1659283428114,0.41208357,23795.0,23789.0,0.303477]
[1659283428335,0.41208357,23795.0,23789.0,0.315159]
[1659283428545,0.41208357,23795.0,23790.0,0.210092]
[1659283428773,0.00482624,23795.0,23790.0,0.210092]
[1659283428987,0.00482624,23795.0,23791.0,0.303477]
[1659283429198,0.00482624,23795.0,23789.0,0.105053]
[1659283429434,0.00482624,23795.0,23790.0,0.303477]
[1659283429655,0.00482624,23795.0,23791.0,0.303477]
[1659283429893,0.54014132,23796.0,23789.0,0.51231033]
[1659283430102,0.00482365,23794.0,23789.0,0.51231033]
[1659283430340,0.00482365,23794.0,23791.0,0.054]
[1659283430566,0.00482365,23794.0,23791.0,0.357477]
[1659283430785,0.00482365,23794.0,23792.0,0.04171837]
[1659283431009,0.00171167,23795.0,23791.0,0.054]
[1659283431680,0.00171167,23795.0,23789.0,0.40725733]
[1659283432353,0.00171167,23795.0,23790.0,0.303477]
[1659283432576,0.00171167,23795.0,23789.0,0.46125733]
[1659283432804,0.00171167,23795.0,23790.0,0.303477]
[1659283433027,0.00171167,23795.0,23789.0,0.46125733]
[1659283433304,0.00171167,23795.0,23790.0,0.303477]
[1659283433510,0.00171167,23795.0,23789.0,0.46125733]
[1659283433731,0.78781585,23796.0,23790.0,0.303477]
[1659283433959,0.78781585,23796.0,23789.0,0.40725733]
[1659283434172,0.78781585,23796.0,23788.0,0.615171]
[1659283434173,0.00171006,23794.0,23788.0,1.02242833]
[1659283434411,0.00171006,23794.0,23790.0,0.047]
[1659283435254,0.21185306,23794.0,23790.0,0.047]
[1659283435516,0.40725733,23793.0,23790.0,0.047]
[1659283435716,0.35,23792.0,23784.0,0.210147]
[1659283435940,0.50725733,23791.0,23784.0,0.3]
[1659283436157,0.61743433,23790.0,23784.0,0.3]
[1659283436386,0.40725733,23789.0,23784.0,0.510141]
[1659283436611,0.40725733,23789.0,23785.0,0.303477]
[1659283436838,1.3691863,23792.0,23786.0,0.74193049]
[1659283436839,0.6314,23792.0,23786.0,0.74193049]
[1659283437106,0.6314,23792.0,23787.0,0.933783]
[1659283437107,0.58761523,23792.0,23787.0,0.933783]
[1659283437307,0.05148428,23791.0,23788.0,0.303477]
[1659283437526,0.00148428,23791.0,23789.0,0.303477]
[1659283437744,0.51824722,23792.0,23788.0,0.210106]
[1659283437964,0.51824722,23792.0,23788.0,0.303477]
[1659283438186,0.00194143,23790.0,23786.0,0.81232333]
[1659283438412,0.00194143,23790.0,23788.0,0.062]
[1659283438637,0.00194143,23790.0,23788.0,0.365477]
[1659283438838,0.00194143,23790.0,23789.0,0.353477]
[1659283439129,0.00194143,23790.0,23789.0,0.05]
[1659283440025,0.00194143,23790.0,23786.0,0.81232333]
[1659283440229,0.00194143,23790.0,23787.0,0.303477]
[1659283440372,0.00194143,23790.0,23789.0,0.064]
[1659283441024,0.00559557,23790.0,23789.0,0.064]
[1659283441232,0.00559557,23790.0,23789.0,0.09902651]
[1659283441469,0.00166611,23790.0,23789.0,0.367477]
[1659283441667,0.210148,23792.0,23790.0,0.05]
[1659283441808,0.20062467,23792.0,23786.0,0.81232333]
[1659283442030,0.420285,23794.0,23787.0,0.303477]
[1659283442031,0.630412,23794.0,23787.0,0.303477]
[1659283442242,0.00699587,23790.0,23786.0,0.81232333]
[1659283442465,0.00699587,23790.0,23787.0,0.303477]
[1659283442668,0.00699587,23790.0,23789.0,0.05]
[1659283442963,0.00699587,23790.0,23789.0,0.353477]
[1659283443774,0.00699587,23790.0,23789.0,0.05]
[1659283443915,0.00699587,23790.0,23789.0,0.303477]
[1659283444124,0.00699587,23790.0,23788.0,0.03502652]
[1659283444353,0.00699587,23790.0,23789.0,0.417477]
[1659283445093,0.20589741,23792.0,23789.0,0.417477]
[1659283445261,0.20589741,23792.0,23789.0,0.114]
[1659283445695,0.20589741,23792.0,23789.0,0.05]
[1659283445915,0.40725733,23793.0,23789.0,0.08502651]
[1659283446143,1.21751994,23797.0,23789.0,0.29512951]
[1659283446144,0.00183766,23790.0,23789.0,0.29512951]
[1659283446365,0.00183766,23790.0,23789.0,1.04386384]
[1659283447064,0.00183766,23790.0,23789.0,1.13376084]
[1659283447275,0.00183766,23790.0,23789.0,0.83376084]
[1659283447725,0.00183766,23790.0,23789.0,0.79576084]
[1659283448442,0.00183766,23790.0,23789.0,1.16976084]
[1659283448637,0.46437136,23797.0,23791.0,0.05]
[1659283448638,0.44667307,23797.0,23791.0,0.05]
[1659283448853,0.8539304,23797.0,23791.0,0.36512]
[1659283449076,0.8539304,23797.0,23791.0,0.15504]
[1659283449760,0.74950504,23797.0,23791.0,0.15504]
[1659283449975,0.95960804,23797.0,23791.0,0.15504]
[1659283450422,0.95960804,23797.0,23791.0,0.19504]
[1659283451836,0.95960804,23797.0,23791.0,0.15504]
[1659283452327,0.05,23796.0,23791.0,0.15504]
[1659283452549,0.92680173,23797.0,23791.0,0.49504]
[1659283452781,0.029395,23796.0,23791.0,0.49504]
[1659283453012,0.88078371,23797.0,23791.0,0.49504]
[1659283453229,0.85419833,23797.0,23791.0,0.49504]
[1659283453457,0.82538402,23797.0,23791.0,0.49504]
[1659283453686,0.41197722,23797.0,23792.0,0.40725733]
[1659283453893,0.39189403,23797.0,23792.0,0.40725733]
[1659283454120,0.3766144,23797.0,23792.0,0.40725733]
[1659283454337,0.3766144,23797.0,23792.0,0.48725733]
[1659283454564,0.3766144,23797.0,23792.0,0.08]
[1659283454836,0.37856478,23797.0,23792.0,0.08043448]
[1659283455049,0.210112,23795.0,23792.0,0.08043448]
[1659283455266,0.260112,23795.0,23792.0,0.08043448]
[1659283455490,0.44403285,23793.0,23792.0,0.08043448]
[1659283455716,1.07448885,23793.0,23792.0,0.00043448]
[1659283455936,0.74264139,23793.0,23792.0,0.00043448]
[1659283456240,0.61736304,23793.0,23792.0,0.00043448]
[1659283456453,0.6071324,23793.0,23792.0,0.04943448]
[1659283456894,0.1574334,23793.0,23792.0,0.04943448]
[1659283457567,0.1592749,23793.0,23792.0,0.04943448]
[1659283457790,0.1592749,23793.0,23792.0,0.00043448]
[1659283458468,0.1592749,23793.0,23792.0,0.07943448]
[1659283458714,0.1592749,23793.0,23792.0,0.03943448]
[1659283459162,0.0018415,23793.0,23792.0,0.03943448]
[1659283459599,1.44321753,23795.0,23792.0,0.03943448]
[1659283459816,0.239512,23794.0,23788.0,0.510113]
[1659283460103,0.66638253,23795.0,23788.0,1.02243033]
[1659283460313,0.056,23794.0,23789.0,0.210109]
[1659283460533,0.00183905,23793.0,23790.0,0.3]
[1659283460760,0.00183905,23793.0,23791.0,0.13972516]
[1659283461663,0.00183905,23793.0,23791.0,0.105052]
[1659283462105,0.00183905,23793.0,23791.0,0.13972516]
[1659283462358,0.04783905,23793.0,23791.0,0.13972516]
[1659283462534,0.00409982,23793.0,23791.0,0.13972516]
[1659283462755,0.00409982,23793.0,23792.0,0.00087999]
[1659283463174,0.00127004,23793.0,23792.0,0.30435699]
[1659283463633,0.00127004,23793.0,23792.0,0.303477]
[1659283463933,0.40725733,23795.0,23790.0,0.3]
[1659283464383,0.40725733,23795.0,23792.0,0.08]
[1659283464600,0.00165404,23793.0,23792.0,0.08]
[1659283465721,0.00165404,23793.0,23788.0,1.02243633]
[1659283465954,0.21178004,23793.0,23789.0,0.303477]
[1659283466191,0.210131,23792.0,23790.0,0.03467316]
[1659283466415,0.210131,23792.0,23788.0,0.38]
[1659283466654,0.210131,23792.0,23789.0,0.303477]
[1659283466881,0.20620398,23792.0,23790.0,0.303477]
[1659283467098,0.20620398,23792.0,23790.0,0.03467316]
[1659283467313,0.20620398,23792.0,23791.0,0.303477]
[1659283467530,0.20620398,23792.0,23790.0,0.03467316]
[1659283468430,0.20620398,23792.0,23790.0,0.08]
[1659283469053,0.16637135,23792.0,23790.0,0.11467316]
[1659283469287,0.16637135,23792.0,23790.0,0.08]
[1659283469731,0.16637135,23792.0,23788.0,0.3]
[1659283469967,0.16637135,23792.0,23789.0,0.03467316]
[1659283470173,0.16637135,23792.0,23788.0,0.3]
[1659283470489,0.16244439,23792.0,23789.0,0.00178417]
[1659283470708,0.16244439,23792.0,23788.0,0.37]
[1659283471151,0.16244439,23792.0,23788.0,0.07]
[1659283471152,0.56970172,23792.0,23788.0,0.07]
[1659283471373,0.56970172,23792.0,23789.0,0.05]
[1659283471589,0.56970172,23792.0,23788.0,0.07]
[1659283471809,0.56970172,23792.0,23787.0,0.5781]
[1659283472458,0.56970172,23792.0,23787.0,0.6581]
[1659283473123,0.40725733,23791.0,23787.0,0.6581]
[1659283473338,0.210164,23790.0,23788.0,0.00052167]
[1659283474220,0.2045074,23790.0,23788.0,0.00052167]
[1659283474420,0.2045074,23790.0,23789.0,0.03467316]
[1659283474849,0.2045074,23790.0,23788.0,0.08052167]
[1659283475296,0.00165536,23792.0,23788.0,0.29063767]
[1659283475559,0.00165536,23792.0,23791.0,0.1]
[1659283476439,0.00165536,23792.0,23791.0,0.08]
[1659283476914,0.00165536,23792.0,23791.0,0.08415289]
[1659283477117,0.210123,23793.0,23791.0,0.08415289]
[1659283477369,0.210123,23793.0,23791.0,0.08]
[1659283477370,0.029395,23792.0,23791.0,0.08]
[1659283477618,0.210123,23793.0,23791.0,0.08]
[1659283477787,0.20609576,23793.0,23792.0,0.05]
[1659283478165,0.20609576,23793.0,23790.0,0.03467316]
[1659283478638,0.20609576,23793.0,23792.0,0.079]
[1659283479436,0.23549076,23793.0,23792.0,0.079]
[1659283479864,0.20609576,23793.0,23788.0,0.405065]
[1659283480359,0.20609576,23793.0,23788.0,0.3]
[1659283480590,0.91335309,23793.0,23788.0,0.08]
[1659283480816,0.43665233,23792.0,23788.0,0.08]
[1659283481038,0.630511,23791.0,23788.0,0.08]
[1659283481273,0.029395,23790.0,23788.0,0.11488082]
[1659283481526,0.2021154,23789.0,23788.0,0.08]
[1659283481755,0.2021154,23789.0,23785.0,0.3]
[1659283481971,0.2021154,23789.0,23786.0,0.303477]
[1659283482196,0.2021154,23789.0,23786.0,0.03467316]
[1659283482331,0.05,23787.0,23786.0,0.03926851]
[1659283482555,0.2021154,23789.0,23786.0,0.64274551]
[1659283482756,0.2021154,23789.0,23786.0,0.33926851]
[1659283483039,0.2021154,23789.0,23785.0,0.185081]
[1659283483575,0.20128025,23789.0,23786.0,0.03467316]
[1659283484425,0.20128025,23789.0,23786.0,0.08]
[1659283484874,0.19802833,23789.0,23786.0,0.08]
[1659283485081,0.19017853,23789.0,23786.0,0.08]
[1659283485534,0.19183175,23789.0,23787.0,0.03467316]
[1659283485798,0.19183175,23789.0,23786.0,0.105076]
[1659283486034,0.210168,23788.0,23784.0,0.8641]
[1659283486267,0.210168,23788.0,23785.0,0.303477]
[1659283486492,0.210168,23788.0,23786.0,0.383477]
[1659283486700,0.210168,23788.0,23786.0,0.08]
[1659283488277,0.210168,23788.0,23784.0,0.5641]
[1659283488534,0.20694734,23788.0,23786.0,0.08]
[1659283489902,0.20694734,23788.0,23780.0,0.03172988]
[1659283489903,0.05,23786.0,23780.0,0.03172988]
[1659283490136,0.05,23781.0,23779.0,0.24889673]
[1659283490360,0.04577107,23780.0,23779.0,0.24889673]
[1659283490571,0.04396322,23780.0,23779.0,0.24889673]
[1659283490852,0.45122055,23780.0,23779.0,0.24889673]
[1659283491237,0.48061555,23780.0,23779.0,0.24889673]
[1659283491461,0.48433084,23780.0,23779.0,0.24889673]
[1659283492098,0.46345511,23780.0,23779.0,0.24889673]
[1659283492518,0.50517955,23780.0,23779.0,0.24889673]
[1659283492742,0.47578455,23780.0,23779.0,0.24889673]
[1659283493483,0.50517955,23780.0,23779.0,0.24889673]
[1659283493715,0.62923377,23780.0,23779.0,0.24889673]
[1659283494359,0.66173403,23780.0,23779.0,0.24889673]
[1659283494581,0.63283903,23780.0,23779.0,0.24889673]
[1659283494819,0.66223403,23780.0,23779.0,0.24889673]
[1659283495274,0.65912877,23780.0,23779.0,0.24889673]
[1659283495704,0.62112877,23780.0,23779.0,0.24889673]
[1659283496407,0.71012877,23780.0,23779.0,0.24889673]
[1659283496636,1.06012877,23780.0,23779.0,0.24889673]
[1659283496858,0.71012877,23780.0,23779.0,0.24889673]
[1659283497303,0.96012877,23780.0,23774.0,0.001]
[1659283497514,0.61754096,23779.0,23774.0,0.001]
[1659283497720,0.680862,23778.0,23774.0,0.001]
[1659283497934,0.02680278,23775.0,23774.0,0.001]
[1659283498151,0.65768478,23775.0,23774.0,0.001]
[1659283499444,0.65974202,23775.0,23774.0,0.001]
[1659283500076,0.66825274,23775.0,23774.0,0.001]
[1659283500289,1.12551007,23775.0,23774.0,0.001]
[1659283500508,1.53951007,23775.0,23774.0,0.001]
[1659283500757,1.99058051,23775.0,23774.0,0.001]
[1659283500974,1.7447132,23774.0,23773.0,0.001]
[1659283501380,2.50197053,23774.0,23773.0,0.001]
[1659283501603,2.48235233,23774.0,23773.0,0.001]
[1659283502066,1.03885233,23774.0,23773.0,0.001]
[1659283502298,0.68885233,23774.0,23773.0,0.001]
[1659283502581,0.48465233,23774.0,23773.0,0.001]
[1659283502822,0.83465233,23774.0,23773.0,0.001]
[1659283503047,0.83465233,23774.0,23773.0,0.00156719]
[1659283503965,0.78665233,23774.0,23773.0,0.00156719]
[1659283504185,0.56257124,23774.0,23773.0,0.00156719]
[1659283504406,0.61035349,23774.0,23773.0,0.00156719]
[1659283504903,0.65936669,23774.0,23773.0,0.00156719]
[1659283505589,1.3593667,23774.0,23773.0,0.00156719]
[1659283505819,1.3113667,23774.0,23773.0,0.00156719]
[1659283506058,1.3113667,23774.0,23771.0,0.0021]
[1659283506059,0.95,23772.0,23771.0,0.001]
[1659283506291,2.57195677,23772.0,23771.0,0.001]
[1659283506567,3.40941144,23772.0,23771.0,0.001]
[1659283506806,4.00621144,23772.0,23771.0,0.001]
[1659283507300,4.70191144,23772.0,23770.0,0.001]
[1659283507541,4.70191144,23772.0,23765.0,0.00222121]
[1659283507542,1.6957,23769.0,23765.0,0.00222121]
[1659283507769,3.11335825,23769.0,23765.0,0.00222121]
[1659283508003,3.14275325,23769.0,23765.0,0.00222121]
[1659283508241,3.14275325,23769.0,23765.0,0.0021]
[1659283508509,3.19475325,23769.0,23765.0,0.0021]
[1659283508748,3.94376646,23769.0,23765.0,0.0021]
[1659283509082,2.94376646,23769.0,23765.0,0.0021]
[1659283509322,2.28435234,23769.0,23765.0,0.0021]
[1659283509521,2.28435234,23769.0,23768.0,0.01497566]
[1659283509809,2.23235234,23769.0,23768.0,0.01497566]
[1659283510047,1.5390474,23769.0,23768.0,0.01497566]
[1659283510534,1.5880474,23769.0,23768.0,0.01497566]
[1659283511438,1.58582537,23769.0,23768.0,0.01497566]
[1659283511673,1.57968279,23769.0,23768.0,0.01497566]
[1659283511894,1.53039783,23769.0,23768.0,0.01497566]
[1659283512553,1.58039783,23769.0,23768.0,0.01497566]
[1659283513889,1.53039783,23769.0,23768.0,0.01497566]
[1659283514594,1.58039783,23769.0,23768.0,0.01497566]
[1659283514810,2.28039784,23769.0,23768.0,0.01497566]
[1659283515460,2.68039784,23769.0,23768.0,0.01497566]
[1659283516353,2.63039784,23769.0,23768.0,0.01497566]
[1659283516594,2.72941104,23769.0,23768.0,0.01167566]
[1659283516860,2.72941104,23769.0,23766.0,5.66e-06]
[1659283516861,1.326952,23768.0,23766.0,5.66e-06]
[1659283517084,2.13235234,23767.0,23766.0,5.66e-06]
[1659283518531,2.18035234,23767.0,23766.0,5.66e-06]
[1659283518960,2.22936554,23767.0,23766.0,5.66e-06]
[1659283519880,2.13235234,23767.0,23766.0,5.66e-06]
[1659283520566,2.18035234,23767.0,23766.0,5.66e-06]
[1659283521688,2.90095735,23767.0,23765.0,0.00100566]
[1659283522053,2.13885233,23766.0,23765.0,5.66e-06]
[1659283522275,1.0,23761.0,23750.0,0.3893]
[1659283522515,0.631411,23757.0,23751.0,0.40725733]